bitfinex-derivatives/quotes_ETHF0:USTF0_20240920
["timestamp","ask_amount","ask_price","bid_price","bid_amount"]
[1726841183490,0.4285,2533.9,2533.8,0.39464]
[1726841183685,0.4285,2533.9,2533.7,3.08]
[1726841183886,0.4285,2533.9,2533.8,0.39464]
[1726841184295,6.80189762,2534.4,2533.7,3.08]
[1726841184495,0.4285,2534.3,2534.1,0.39458]
[1726841184794,0.4285,2534.3,2534.2,0.39458]
[1726841185097,0.4285,2534.3,2533.8,0.4418]
[1726841185299,0.4285,2534.3,2534.2,0.39458]
[1726841185491,2.38403882,2534.6,2534.4,0.39454]
[1726841185691,1.2722,2534.6,2534.5,0.39453]
[1726841185891,1.2722,2534.6,2534.5,3.47453]
[1726841186295,5.61231,2534.6,2534.5,3.08]
[1726841186600,5.2178,2534.6,2534.4,0.39454]
[1726841186802,1.2722,2534.6,2534.4,0.39454]
[1726841187107,1.2722,2534.6,2534.3,3.08]
[1726841187108,1.66672,2534.6,2534.3,3.47456]
[1726841187400,1.66672,2534.6,2534.2,3.2078]
[1726841187401,1.2722,2534.6,2534.5,3.47453]
[1726841187598,0.4285,2534.6,2534.5,3.47453]
[1726841187806,4.3741,2534.6,2534.5,3.08]
[1726841188195,4.3741,2534.6,2534.4,0.39454]
[1726841188395,0.4285,2534.6,2534.4,0.39454]
[1726841188791,0.4285,2534.6,2534.4,0.39455]
[1726841189101,0.39451,2534.7,2534.5,3.08]
[1726841189295,0.4558,2534.6,2534.5,3.08]
[1726841189692,4.4014,2534.6,2534.5,3.47453]
[1726841189896,4.4014,2534.6,2534.1,3.08]
[1726841189897,0.39456,2534.3,2534.1,3.08]
[1726841190094,0.4213,2534.2,2534.1,3.47459]
[1726841190600,0.4213,2534.2,2534.1,3.08]
[1726841190791,4.3677,2534.2,2534.1,3.47459]
[1726841191191,4.3677,2534.2,2534.1,3.08]
[1726841191399,7.5755,2534.2,2533.7,3.08]
[1726841191597,0.83279,2534.1,2534.0,3.08]
[1726841192101,4.77919,2534.1,2534.0,3.08]
[1726841192401,4.77919,2534.1,2533.8,3.08]
[1726841192402,0.39463,2533.9,2533.8,3.08]
[1726841192605,0.39463,2533.9,2533.6,3.08]
[1726841192606,2.52690882,2533.9,2533.6,3.08]
[1726841192798,0.39465,2533.7,2533.6,3.08]
[1726841193105,0.39472,2533.3,2533.2,3.08]
[1726841193411,0.39476,2533.1,2533.0,3.08]
[1726841193706,0.39475,2533.1,2533.0,3.08]
[1726841193905,6.47521882,2533.1,2532.7,3.08]
[1726841194101,1.97013882,2533.0,2532.7,3.08]
[1726841194401,0.3948,2532.8,2532.7,3.08]
[1726841194702,5.88311882,2532.9,2532.7,3.08]
[1726841194901,1.93511882,2532.9,2532.7,3.08]
[1726841195098,0.3948,2532.8,2532.7,3.08]
[1726841195296,3.948,2532.9,2532.7,3.08]
[1726841195507,0.39479,2532.9,2532.7,3.08]
[1726841196001,0.39479,2532.9,2532.6,4.18482]
[1726841196209,1.93512882,2532.9,2532.6,3.79]
[1726841196497,1.54033882,2532.9,2532.6,3.79]
[1726841196699,1.93512882,2532.9,2532.6,3.79]
[1726841197207,1.93512882,2532.9,2532.6,4.18482]
[1726841197408,0.3948,2532.8,2532.6,3.79]
[1726841197598,1.93512882,2532.9,2532.6,3.79]
[1726841197904,0.3948,2532.8,2532.6,3.79]
[1726841198305,0.39481,2532.7,2532.6,3.79]
[1726841198497,1.54033882,2532.9,2532.6,4.18483]
[1726841198905,0.3948,2532.8,2532.6,3.79]
[1726841199205,9.68313882,2532.8,2532.1,3.2078]
[1726841199398,0.39488,2532.3,2532.1,3.2078]
[1726841199598,0.39488,2532.3,2532.1,3.6027]
[1726841199799,0.98711,2532.6,2532.1,3.2078]
[1726841199800,0.8842,2532.5,2532.1,3.2078]
[1726841200208,0.8842,2532.5,2532.0,0.39491]
[1726841200209,0.39489,2532.2,2532.0,0.39491]
[1726841200410,0.39491,2532.1,2531.9,0.39494]
[1726841200595,0.98719,2532.3,2531.8,3.2078]
[1726841200800,0.98723,2532.2,2531.8,3.2078]
[1726841200997,0.39493,2532.0,2531.8,3.60275]
[1726841201199,4.93689,2532.1,2531.5,0.4555]
[1726841201402,4.93689,2532.1,2531.7,0.39496]
[1726841201403,0.85414,2531.9,2531.7,0.39496]
[1726841201602,4.80374,2531.9,2531.7,0.39496]
[1726841201807,4.80374,2531.9,2531.2,5.0857]
[1726841201808,4.937,2531.8,2531.2,3.6535]
[1726841202109,0.39502,2531.4,2530.9,3.79]
[1726841202411,0.39505,2531.2,2530.8,0.3951]
[1726841202600,5.73564882,2531.5,2530.7,0.82411]
[1726841202800,0.39509,2531.0,2530.7,0.429]
[1726841203006,0.39508,2531.0,2530.7,0.429]
[1726841203209,3.2078,2531.2,2530.6,6.9978]
[1726841203404,0.8621,2531.1,2530.6,3.2078]
[1726841203600,0.8621,2531.1,2530.3,3.79]
[1726841203601,0.39508,2531.0,2530.3,3.79]
[1726841203805,0.39508,2531.0,2530.4,0.39516]
[1726841204801,0.39509,2531.0,2530.4,0.39516]
[1726841205007,0.39509,2531.0,2530.3,3.79]
[1726841205208,0.39509,2531.0,2530.4,0.39516]
[1726841205609,0.3951,2530.9,2530.4,0.39516]
[1726841206005,0.39509,2530.9,2530.4,0.39516]
[1726841206205,0.39508,2531.0,2530.4,0.39516]
[1726841206703,0.8621,2531.1,2530.3,4.18518]
[1726841207011,3.2078,2530.6,2529.8,3.6473]
[1726841207214,3.2078,2530.3,2529.8,3.6473]
[1726841207403,0.39522,2530.1,2529.8,3.2078]
[1726841207713,0.39521,2530.2,2529.8,3.2078]
[1726841208007,3.2078,2530.3,2529.9,0.39524]
[1726841208208,3.2078,2530.5,2529.8,3.2078]
[1726841208411,4.19559,2530.8,2529.9,0.39524]
[1726841208708,0.39519,2530.3,2529.9,0.39524]
[1726841208908,0.39518,2530.4,2529.9,0.39525]
[1726841209408,3.2078,2530.5,2529.9,0.39525]
[1726841209409,0.39519,2530.3,2529.9,0.39525]
[1726841209612,3.2078,2530.5,2529.8,3.2078]
[1726841209802,3.2078,2530.5,2530.2,0.39519]
[1726841210002,3.60295,2530.5,2530.1,4.18521]
[1726841210204,3.2078,2530.5,2530.1,3.79]
[1726841210399,0.39512,2530.8,2530.1,3.79]
[1726841210608,0.39513,2530.7,2530.1,6.9978]
[1726841211003,3.2078,2530.9,2530.1,6.9978]
[1726841211210,0.39511,2530.8,2530.4,0.39516]
[1726841211516,0.39511,2530.8,2530.1,6.9978]
[1726841211517,0.39511,2530.8,2530.5,0.39515]
[1726841211826,0.8621,2531.1,2530.7,3.79]
[1726841212114,0.4415,2531.1,2531.0,0.39508]
[1726841212310,3.2078,2531.5,2530.7,6.9978]
[1726841212525,4.19531,2531.5,2530.7,6.9978]
[1726841212808,3.2078,2531.5,2530.7,6.9978]
[1726841213015,0.39502,2531.4,2531.0,0.39507]
[1726841213214,3.2078,2531.5,2531.0,0.39507]
[1726841213215,0.39503,2531.3,2531.0,0.39507]
[1726841213417,3.2078,2531.5,2531.1,0.39505]
[1726841213616,0.39502,2531.4,2531.1,0.39505]
[1726841214609,3.2078,2531.5,2530.7,7.4483]
[1726841214814,3.2078,2531.5,2531.0,6.9978]
[1726841215015,3.2078,2531.5,2531.4,0.39501]
[1726841215514,0.4433,2531.8,2531.7,0.39497]
[1726841215716,3.2078,2532.0,2531.3,6.9978]
[1726841215908,3.2078,2532.0,2531.4,0.395]
[1726841216211,3.2078,2532.0,2531.3,3.2078]
[1726841216410,0.39501,2531.5,2531.3,3.2078]
[1726841216608,3.2078,2531.7,2531.3,3.2078]
[1726841216809,0.39501,2531.5,2531.3,3.2078]
[1726841217112,0.39501,2531.5,2530.8,3.6581]
[1726841217113,3.2078,2531.5,2530.8,3.6581]
[1726841217313,0.39502,2531.4,2531.1,0.39505]
[1726841217513,3.2078,2531.5,2530.8,3.6581]
[1726841217906,0.98746,2531.6,2530.8,0.4503]
[1726841218107,0.39508,2531.0,2530.8,0.3951]
[1726841218412,3.2078,2531.2,2530.3,6.345]
[1726841218617,3.2078,2531.2,2530.6,0.39513]
[1726841218618,0.39511,2530.9,2530.6,0.39513]
[1726841218920,0.39513,2530.7,2530.4,0.39516]
[1726841219214,0.39514,2530.6,2530.3,0.39517]
[1726841219416,0.39513,2530.7,2530.2,7.846]
[1726841219611,0.39512,2530.7,2530.2,7.846]
[1726841219815,0.39512,2530.7,2530.4,0.39516]
[1726841220326,3.6451,2530.9,2530.2,0.4192]
[1726841220327,0.98778,2530.8,2530.2,0.4192]
[1726841220505,0.39516,2530.5,2530.3,0.39518]
[1726841220708,1.42128,2530.8,2530.2,0.81439]
[1726841220917,0.39516,2530.5,2530.3,0.39518]
[1726841221120,0.39517,2530.4,2530.2,0.81439]
[1726841221309,0.39515,2530.6,2529.9,6.9978]
[1726841221609,0.39516,2530.5,2530.3,0.39518]
[1726841221816,3.2078,2530.7,2529.9,7.4141]
[1726841222220,0.39514,2530.6,2530.4,0.39517]
[1726841222528,4.19561,2530.7,2529.9,3.6241]
[1726841222812,0.98781,2530.7,2529.9,0.4163]
[1726841223015,0.39521,2530.2,2530.0,0.39523]
[1726841223214,4.19572,2530.5,2530.0,0.39522]
[1726841223423,4.19572,2530.5,2529.9,0.81154]
[1726841223424,0.3952,2530.2,2529.9,0.81154]
[1726841223624,0.39522,2530.2,2529.9,0.81154]
[1726841223826,0.39522,2530.1,2529.9,0.81154]
[1726841224320,0.39522,2530.1,2529.6,7.8547]
[1726841224321,3.2078,2530.1,2529.6,3.6476]
[1726841224520,0.39524,2530.0,2529.7,0.39526]
[1726841224714,0.39525,2529.9,2529.7,0.39526]
[1726841224917,0.39526,2529.9,2529.7,0.39528]
[1726841225211,0.39526,2529.9,2529.6,3.2078]
[1726841225212,0.39526,2529.8,2529.6,3.60309]
[1726841225419,4.63637,2530.1,2529.6,3.2078]
[1726841225619,0.39527,2529.8,2529.6,3.60309]
[1726841226723,0.39527,2529.8,2529.6,0.39529]
[1726841226919,0.39526,2529.9,2529.3,6.9978]
[1726841227123,0.39526,2529.9,2529.7,0.39527]
[1726841227420,5.08377,2530.1,2529.3,6.9978]
[1726841227611,0.39526,2529.9,2529.7,0.39527]
[1726841228017,0.39524,2530.0,2529.8,0.39526]
[1726841228214,0.39525,2529.9,2529.3,7.98614]
[1726841228826,0.39525,2529.9,2529.8,0.39526]
[1726841229323,0.39523,2530.0,2529.5,0.98827]
[1726841229630,0.98793,2530.4,2530.1,0.39522]
[1726841230024,0.98799,2530.3,2529.6,7.4544]
[1726841230324,0.98801,2530.2,2529.8,0.39526]
[1726841230513,0.98801,2530.2,2529.6,3.6644]
[1726841230514,0.39524,2530.0,2529.6,3.6644]
[1726841231030,0.39524,2530.0,2529.9,0.39525]
[1726841231231,0.39523,2530.1,2529.6,4.65263]
[1726841231532,0.98793,2530.4,2529.7,0.98821]
[1726841231728,0.98793,2530.4,2530.0,0.39523]
[1726841231935,4.5813,2530.5,2529.9,3.2078]
[1726841232139,0.3952,2530.3,2530.1,0.39521]
[1726841232341,0.3952,2530.3,2529.8,0.98817]
[1726841232342,0.39518,2530.4,2530.2,0.39519]
[1726841232731,4.97646,2530.5,2530.3,0.39518]
[1726841232934,0.85546,2530.5,2530.3,0.39518]
[1726841233227,0.85546,2530.5,2529.9,3.2078]
[1726841233228,0.39518,2530.4,2530.2,0.3952]
[1726841233535,0.39519,2530.3,2530.1,0.39521]
[1726841234535,0.39519,2530.3,2530.1,0.3952]
[1726841234743,0.39518,2530.4,2530.2,0.3952]
[1726841235134,4.34718,2530.4,2530.2,0.3952]
[1726841235330,3.952,2530.4,2530.3,0.39519]
[1726841235530,3.952,2530.4,2529.9,3.2078]
[1726841235531,3.2078,2530.9,2530.5,0.39515]
[1726841235733,3.2078,2530.9,2530.6,0.39513]
[1726841236028,3.2078,2530.9,2530.2,6.9978]
[1726841236233,0.39512,2530.8,2530.3,0.4574]
[1726841236434,0.39512,2530.8,2530.4,0.39516]
[1726841237031,0.39513,2530.7,2530.3,0.919]
[1726841237239,0.39512,2530.7,2530.4,0.39516]
[1726841237445,0.39511,2530.8,2530.5,0.39515]
[1726841237636,0.39513,2530.7,2530.4,0.39516]
[1726841237939,0.39516,2530.5,2530.2,3.603]
[1726841238131,3.2078,2530.8,2529.9,0.4165]
[1726841238334,1.41691,2530.7,2529.9,0.4165]
[1726841238544,0.39523,2530.0,2529.9,0.4165]
[1726841238832,0.39523,2530.1,2529.9,0.4165]
[1726841239043,0.8867,2530.3,2529.9,0.39525]
[1726841239249,1.28189,2530.3,2529.8,3.6521]
[1726841239438,0.4363,2530.3,2530.1,0.3952]
[1726841239740,3.2078,2530.2,2529.6,0.4165]
[1726841239938,0.39533,2529.4,2529.2,3.6403]
[1726841240131,0.39532,2529.5,2529.2,0.82786]
[1726841240440,0.39533,2529.4,2529.1,0.39537]
[1726841240631,0.39532,2529.5,2529.1,0.39537]
[1726841241039,0.39533,2529.4,2529.1,0.39537]
[1726841241341,0.3953,2529.6,2528.9,0.4165]
[1726841241535,0.4363,2529.7,2528.9,0.4165]
[1726841241739,0.39533,2529.4,2529.1,0.39537]
[1726841242035,0.4363,2529.7,2528.8,3.2078]
[1726841242338,0.3954,2528.9,2528.8,3.2078]
[1726841242538,0.39533,2529.4,2528.8,3.2078]
[1726841242738,1.33033,2529.4,2528.8,3.2078]
[1726841243236,0.39538,2529.1,2528.8,3.2078]
[1726841243428,0.39538,2529.1,2528.8,3.60321]
[1726841244140,0.935,2529.4,2528.9,0.3954]
[1726841244340,0.4619,2529.4,2529.0,0.39538]
[1726841244547,0.39535,2529.3,2529.0,0.39538]
[1726841244935,0.4619,2529.4,2529.1,0.39536]
[1726841245138,0.39532,2529.5,2528.8,3.2078]
[1726841245435,0.4363,2529.7,2528.9,0.3954]
[1726841245640,0.39538,2529.1,2528.8,0.39541]
[1726841245936,0.98836,2529.3,2528.7,0.39543]
[1726841246137,0.8502,2529.0,2528.7,0.39543]
[1726841246440,0.8502,2529.0,2528.5,3.6283]
[1726841246642,0.8502,2529.0,2528.8,0.39542]
[1726841247537,0.8502,2529.0,2528.7,0.39543]
[1726841247938,0.4548,2529.0,2528.5,3.6283]
[1726841248243,0.39541,2528.9,2528.6,0.39545]
[1726841248634,0.4548,2529.0,2528.5,4.02376]
[1726841248635,0.39542,2528.8,2528.5,4.02376]
[1726841248833,1.4433,2529.0,2528.5,0.4205]
[1726841249033,0.98853,2528.9,2528.4,0.81977]
[1726841249240,0.39545,2528.6,2528.4,0.81977]
[1726841249638,0.39545,2528.6,2528.4,0.4243]
[1726841250146,0.39545,2528.7,2528.5,0.39546]
[1726841250344,1.44331,2529.0,2528.4,0.4243]
[1726841250645,0.39545,2528.7,2528.5,0.39546]
[1726841252148,0.39545,2528.7,2528.6,0.39545]
[1726841252348,0.39544,2528.7,2528.6,0.39545]
[1726841252848,0.39542,2528.9,2528.8,0.39542]
[1726841253163,0.39542,2528.8,2528.7,0.39542]
[1726841253464,0.4548,2529.0,2528.4,4.1965]
[1726841253750,0.4548,2529.0,2528.5,0.98866]
[1726841254061,0.3954,2528.9,2528.8,0.39541]
[1726841254747,0.4548,2529.0,2528.5,0.98866]
[1726841255054,0.4548,2529.0,2528.8,0.3954]
[1726841255055,0.39541,2528.9,2528.8,0.3954]
[1726841255345,0.39542,2528.9,2528.8,0.39541]
[1726841256150,0.39546,2528.6,2528.5,0.39546]
[1726841256350,3.9544,2528.9,2528.2,0.39551]
[1726841256351,0.39551,2528.3,2528.2,0.39551]
[1726841256540,0.39551,2528.3,2527.9,3.2078]
[1726841256541,3.79,2528.7,2527.9,3.2078]
[1726841256748,0.98867,2528.5,2527.9,3.2078]
[1726841257045,0.39554,2528.1,2528.0,0.39553]
[1726841257252,0.39554,2528.1,2528.0,0.39554]
[1726841257641,0.39554,2528.1,2527.9,3.2078]
[1726841257642,0.39554,2528.0,2527.9,3.60335]
[1726841258154,0.39554,2528.1,2528.0,0.39553]
[1726841258460,0.39554,2528.1,2527.7,1.89708]
[1726841258461,0.98875,2528.3,2527.7,0.47]
[1726841258747,0.39562,2527.6,2527.4,0.39563]
[1726841259144,0.39559,2527.7,2527.1,0.98922]
[1726841259344,0.432,2527.8,2527.6,0.39559]
[1726841259541,0.3956,2527.7,2527.5,0.39561]
[1726841259745,0.3956,2527.7,2527.2,3.2078]
[1726841259947,0.39561,2527.6,2527.4,0.39563]
[1726841260150,0.432,2527.8,2527.5,0.39562]
[1726841260555,0.39559,2527.7,2527.5,0.39562]
[1726841260745,1.42097,2527.8,2527.0,0.47]
[1726841260953,0.98907,2527.5,2527.0,0.47]
[1726841261156,0.9891,2527.4,2527.0,0.47]
[1726841261452,0.9891,2527.4,2526.8,0.63582379]
[1726841261453,3.2078,2527.3,2526.8,0.19772379]
[1726841261653,6.9978,2527.6,2526.5,4.35333363]
[1726841261855,6.9978,2527.6,2526.9,0.39572]
[1726841261856,0.39569,2527.1,2526.9,0.39572]
[1726841262056,6.9978,2527.6,2526.8,0.39573]
[1726841262057,0.39571,2527.0,2526.8,0.39573]
[1726841262259,0.39569,2527.1,2526.5,4.35333363]
[1726841262459,0.39569,2527.1,2526.8,0.39572]
[1726841262649,0.4305,2527.2,2526.5,4.35333363]
[1726841262855,0.4305,2527.2,2527.1,0.39569]
[1726841263254,0.4305,2527.2,2527.0,0.39569]
[1726841263556,0.4305,2527.2,2526.6,0.98942]
[1726841263557,0.4305,2527.2,2527.1,0.39569]
[1726841263756,3.79,2527.6,2527.2,0.39567]
[1726841263953,0.39564,2527.4,2527.2,0.39567]
[1726841264154,0.39564,2527.4,2527.1,0.39568]
[1726841264352,0.39563,2527.5,2527.2,0.39566]
[1726841264552,0.82611,2527.6,2527.0,3.2078]
[1726841264757,0.82611,2527.6,2527.4,0.39563]
[1726841264758,0.4305,2527.6,2527.4,0.39563]
[1726841265056,0.4305,2527.6,2527.3,0.39565]
[1726841265247,0.4305,2527.6,2527.2,0.39566]
[1726841265453,0.39564,2527.5,2527.2,0.39566]
[1726841265652,0.82611,2527.6,2527.3,0.39564]
[1726841265858,0.82611,2527.6,2527.4,0.39563]
[1726841266149,0.4305,2527.6,2527.5,0.39562]
[1726841266358,0.39558,2527.8,2527.2,4.19696]
[1726841266561,0.4615,2527.9,2527.5,0.39561]
[1726841266755,0.39559,2527.8,2527.6,0.39561]
[1726841267560,0.85707,2527.9,2527.7,0.39559]
[1726841267753,0.85707,2527.9,2527.7,0.39558]
[1726841267954,0.85707,2527.9,2527.7,0.39559]
[1726841268162,0.39559,2527.8,2527.6,0.3956]
[1726841268569,0.39558,2527.8,2527.6,0.3956]
[1726841269256,0.39558,2527.8,2527.3,0.98914]
[1726841269457,0.4615,2527.9,2527.6,0.3956]
[1726841269663,1.45043,2527.9,2527.5,0.39562]
[1726841269870,0.3956,2527.7,2527.5,0.39562]
[1726841270067,0.39562,2527.6,2527.2,3.6693]
[1726841270365,0.3956,2527.7,2527.2,3.6693]
[1726841270566,0.98897,2527.8,2527.3,0.39564]
[1726841270864,0.98899,2527.7,2527.2,3.2078]
[1726841271166,0.39564,2527.5,2527.3,0.39564]
[1726841271366,0.39563,2527.5,2527.4,0.39563]
[1726841271570,0.39562,2527.6,2527.5,0.39562]
[1726841271769,0.39561,2527.6,2527.2,3.2078]
[1726841272062,0.39561,2527.6,2527.5,0.39562]
[1726841272264,0.4615,2527.9,2527.8,0.39558]
[1726841272768,0.85707,2527.9,2527.6,0.3956]
[1726841273158,0.85707,2527.9,2527.5,3.2078]
[1726841273159,0.4615,2527.9,2527.5,3.2078]
[1726841273467,0.4615,2527.9,2527.5,0.39562]
[1726841273468,0.3956,2527.7,2527.5,0.39562]
[1726841273671,0.39561,2527.6,2527.4,3.2078]
[1726841273974,0.39558,2527.8,2527.1,4.88516678]
[1726841274159,0.4615,2527.9,2527.1,3.6644]
[1726841274160,0.39562,2527.6,2527.1,3.6644]
[1726841274365,3.2078,2527.7,2527.1,3.6644]
[1726841274567,0.39562,2527.6,2527.4,0.39563]
[1726841274762,0.39561,2527.6,2527.3,0.39564]
[1726841275170,0.39561,2527.6,2527.4,0.39564]
[1726841275371,0.4615,2527.9,2527.1,4.6536]
[1726841275559,0.4615,2527.9,2527.2,0.98918]
[1726841275966,0.4615,2527.9,2527.6,0.3956]
[1726841275967,0.39558,2527.8,2527.6,0.3956]
[1726841276269,0.39559,2527.7,2527.5,0.39562]
[1726841276464,0.39559,2527.8,2527.5,0.39561]
[1726841276674,0.3956,2527.7,2527.5,0.39561]
[1726841277277,0.4615,2527.9,2527.1,3.6644]
[1726841277475,0.98895,2527.8,2527.1,3.6644]
[1726841277676,0.39561,2527.6,2527.4,0.39563]
[1726841278282,0.39563,2527.5,2527.3,0.39564]
[1726841278572,0.39564,2527.4,2527.1,3.6644]
[1726841279086,0.39562,2527.5,2527.3,0.39565]
[1726841279381,0.39568,2527.2,2527.0,0.39569]
[1726841279578,0.98915,2527.3,2526.7,3.2078]
[1726841279880,0.39571,2527.0,2526.8,0.39572]
[1726841280076,0.98926,2527.0,2526.7,3.2078]
[1726841280282,0.39573,2526.9,2526.6,0.4479]
[1726841280482,0.39574,2526.8,2526.7,0.39574]
[1726841280874,0.39575,2526.7,2526.6,0.84365]
[1726841281074,7.1654,2526.7,2526.3,3.2078]
[1726841281275,7.1654,2526.7,2526.0,4.19745]
[1726841281276,0.39579,2526.5,2526.0,4.19745]
[1726841281477,0.39579,2526.5,2526.3,0.3958]
[1726841281680,0.98942,2526.6,2526.3,0.39581]
[1726841281975,0.39584,2526.2,2526.0,3.2078]
[1726841282478,0.39582,2526.3,2526.1,0.39584]
[1726841282672,0.3958,2526.4,2526.0,3.2078]
[1726841282867,0.4639,2526.5,2526.0,3.2078]
[1726841283068,0.4639,2526.5,2526.4,0.3958]
[1726841283271,0.3958,2526.4,2526.3,0.3958]
[1726841283469,0.4639,2526.5,2526.3,0.3958]
[1726841283670,0.3958,2526.4,2526.3,0.3958]
[1726841284281,0.85969,2526.5,2526.4,0.3958]
[1726841284468,0.4639,2526.5,2526.1,0.4511]
[1726841284675,0.4639,2526.5,2526.4,0.3958]
[1726841284875,0.85968,2526.5,2526.4,0.3958]
[1726841285071,0.4639,2526.5,2526.4,0.3958]
[1726841285580,0.39577,2526.6,2526.5,0.39577]
[1726841285782,1.87786,2526.8,2526.1,0.4511]
[1726841286083,0.39578,2526.5,2526.4,0.39579]
[1726841286281,0.39578,2526.5,2526.3,0.3958]
[1726841286469,0.3958,2526.4,2526.3,0.3958]
[1726841286883,0.39583,2526.2,2526.1,0.39584]
[1726841287177,0.39582,2526.3,2526.2,0.39583]
[1726841287373,0.3958,2526.4,2526.0,3.2078]
[1726841287574,1.87786,2526.8,2526.4,0.39579]
[1726841287773,0.39577,2526.6,2526.4,0.39578]
[1726841287984,0.39577,2526.6,2526.1,0.913]
[1726841287985,0.39575,2526.7,2526.5,0.39578]
[1726841288182,0.39578,2526.6,2526.4,0.39579]
[1726841288376,1.87786,2526.8,2526.4,0.39579]
[1726841288577,0.39577,2526.6,2526.4,0.39579]
[1726841288976,0.39578,2526.5,2526.4,0.39579]
[1726841289174,0.39577,2526.6,2526.4,0.39578]
[1726841289480,0.39576,2526.7,2526.2,0.98957]
[1726841289677,0.8885,2526.8,2526.5,0.39577]
[1726841289872,0.39575,2526.7,2526.2,0.98957]
[1726841290073,3.2078,2527.3,2526.3,3.2078]
[1726841290386,3.2078,2527.3,2527.1,0.39569]
[1726841290387,0.4277,2527.2,2527.1,0.39569]
[1726841290585,0.82337,2527.2,2527.1,0.39569]
[1726841290883,0.4277,2527.2,2527.1,0.39569]
[1726841291384,0.4547,2527.4,2527.3,0.39565]
[1726841291575,0.4277,2527.7,2527.6,0.39561]
[1726841291981,4.48575,2528.0,2527.7,0.39558]
[1726841292279,3.6355,2528.0,2527.8,0.39557]
[1726841292480,3.6355,2528.0,2527.5,0.39562]
[1726841292782,3.6355,2528.0,2527.4,0.4615]
[1726841292783,0.39557,2527.9,2527.4,0.4615]
[1726841292982,0.39558,2527.8,2527.5,0.39561]
[1726841293281,3.6355,2528.0,2527.5,0.39561]
[1726841293282,0.39557,2527.9,2527.5,0.39561]
[1726841293486,3.79,2527.9,2527.4,0.4615]
[1726841293687,0.39563,2527.5,2527.2,0.39567]
[1726841293881,0.39565,2527.4,2527.0,0.3957]
[1726841294090,0.39565,2527.4,2527.0,0.39569]
[1726841294091,0.39566,2527.3,2527.0,0.39569]
[1726841294277,0.4348,2527.4,2526.9,3.2078]
[1726841294780,0.4348,2527.4,2527.2,0.39565]
[1726841294976,0.83044,2527.4,2527.1,0.39568]
[1726841295275,0.4348,2527.4,2527.2,0.39567]
[1726841295476,0.4348,2527.4,2526.8,0.8699]
[1726841295477,0.4348,2527.4,2527.3,0.39565]
[1726841295681,3.2078,2527.7,2527.3,0.39565]
[1726841295877,0.39563,2527.5,2527.2,0.39566]
[1726841296081,0.39562,2527.6,2527.3,0.39565]
[1726841296391,0.39563,2527.5,2527.3,0.39565]
[1726841296687,3.6426,2527.7,2527.1,0.39568]
[1726841296879,7.4326,2527.7,2527.2,0.39567]
[1726841297088,0.39565,2527.4,2527.0,3.2078]
[1726841297288,7.4326,2527.7,2527.0,3.2078]
[1726841297484,3.2078,2527.4,2526.6,0.8772]
[1726841297685,0.4423,2527.3,2526.9,0.39571]
[1726841297984,0.4423,2527.3,2526.6,0.8772]
[1726841298389,0.39569,2527.1,2526.9,0.39571]
[1726841298587,0.4423,2527.3,2526.9,0.39571]
[1726841298792,0.3957,2527.1,2526.9,0.39571]
[1726841299201,0.39568,2527.2,2527.0,0.3957]
[1726841299493,0.9126,2527.3,2526.6,0.8772]
[1726841299691,0.39571,2527.0,2526.6,0.8772]
[1726841300093,0.9126,2527.3,2527.0,0.3957]
[1726841300094,0.39569,2527.1,2527.0,0.3957]
[1726841300285,0.39569,2527.1,2526.9,0.3957]
[1726841300491,0.39569,2527.1,2526.6,5.0744]
[1726841300688,0.4423,2527.3,2526.7,0.98938]
[1726841300893,1.85796236,2527.3,2526.8,0.98934]
[1726841301096,1.85796236,2527.3,2527.2,0.39567]
[1726841301490,0.4423,2527.3,2527.2,0.39567]
[1726841301801,1.98263882,2527.3,2526.6,5.0744]
[1726841302093,1.98263882,2527.3,2527.1,0.39569]
[1726841302094,1.02073741,2527.2,2527.1,0.39569]
[1726841302295,0.39567,2527.2,2527.1,0.39569]
[1726841302497,0.39569,2527.1,2526.6,4.085]
[1726841302696,1.41685186,2527.2,2527.1,0.39569]
[1726841302991,1.41685186,2527.2,2527.0,0.39569]
[1726841303198,1.41685186,2527.2,2526.7,0.98938]
[1726841303199,0.39569,2527.1,2526.7,0.98938]
[1726841303407,3.2078,2527.0,2526.2,3.2078]
[1726841303603,1.41690186,2526.9,2526.8,0.39573]
[1726841303808,5.37450186,2526.9,2526.8,0.39573]
[1726841304000,1.02118186,2526.9,2526.8,0.39573]
[1726841304208,0.84501,2527.0,2526.9,0.39572]
[1726841304513,0.39572,2526.9,2526.8,0.39572]
[1726841304810,1.4709628,2527.0,2526.5,4.19724]
[1726841305112,1.4709628,2527.0,2526.9,0.39572]
[1726841305408,1.4173528,2527.1,2527.0,0.3957]
[1726841305615,1.0216628,2527.1,2527.0,0.3957]
[1726841305906,1.0216628,2527.1,2526.9,0.3957]
[1726841305907,0.3957,2527.0,2526.9,0.3957]
[1726841306309,1.0216628,2527.1,2526.6,0.9064]
[1726841306610,0.39571,2527.0,2526.9,0.39571]
[1726841307002,1.4173528,2527.1,2527.0,0.3957]
[1726841307209,0.39571,2527.0,2526.9,0.39571]
[1726841307409,1.0216628,2527.1,2527.0,0.3957]
[1726841307804,1.54033882,2527.2,2527.1,0.39569]
[1726841307805,1.0216628,2527.2,2527.1,0.39569]
[1726841308399,1.0216628,2527.2,2527.0,0.39569]